bitfinex/quotes_BTCUSD_20251117
["timestamp","ask_amount","ask_price","bid_price","bid_amount"]
[1763386041538,2.04491022,95012.0,95011.0,7.52256318]
[1763386041738,2.02306491,95012.0,95011.0,7.52256318]
[1763386041942,2.02606491,95012.0,95011.0,7.52256318]
[1763386042823,1.81556519,95012.0,95011.0,7.52256318]
[1763386042992,1.70477645,95012.0,95011.0,7.52256318]
[1763386043198,1.69926647,95012.0,95011.0,7.52256318]
[1763386043403,1.72719615,95012.0,95011.0,7.64044325]
[1763386043610,0.04188182,95012.0,95011.0,7.64373318]
[1763386043808,0.01953701,95012.0,95011.0,7.64373318]
[1763386043987,0.01653701,95012.0,95011.0,7.64373318]
[1763386044541,0.01953701,95012.0,95011.0,7.64373318]
[1763386044745,0.00179928,95012.0,95011.0,7.74740256]
[1763386044913,0.00179928,95012.0,95011.0,7.64373318]
[1763386045076,0.001,95012.0,95011.0,7.64373318]
[1763386045998,0.5,95020.0,95011.0,7.57321318]
[1763386046201,0.04175286,95019.0,95011.0,7.57133763]
[1763386046436,0.01940096,95018.0,95012.0,0.07569]
[1763386046966,0.5,95020.0,95017.0,0.05164]
[1763386047166,0.5,95020.0,95019.0,0.05164]
[1763386047396,0.51940171,95020.0,95019.0,0.05164]
[1763386047570,0.51940171,95020.0,95019.0,0.12733]
[1763386047992,0.51940171,95020.0,95019.0,0.04933]
[1763386048192,0.51940171,95020.0,95011.0,7.52068763]
[1763386048396,0.06805081,95019.0,95011.0,7.52068763]
[1763386048595,0.01940171,95018.0,95011.0,7.52068763]
[1763386048923,0.0486491,95019.0,95011.0,7.52068763]
[1763386048924,0.04571279,95017.0,95011.0,7.52068763]
[1763386049230,0.01940171,95016.0,95011.0,7.52068763]
[1763386049433,0.04571334,95015.0,95011.0,7.52068763]
[1763386049571,0.01940171,95014.0,95011.0,7.52068763]
[1763386049770,0.03724,95017.0,95011.0,7.52068763]
[1763386049771,0.01940171,95013.0,95011.0,7.52068763]
[1763386050003,0.01940171,95012.0,95011.0,7.52068763]
[1763386050388,0.01940171,95012.0,95011.0,7.64801763]
[1763386053664,0.5,95020.0,95011.0,7.64801763]
[1763386053862,0.01938028,95019.0,95012.0,0.07569]
[1763386054060,0.01938028,95018.0,95012.0,0.07569]
[1763386054259,0.01938028,95017.0,95012.0,0.07569]
[1763386054461,0.5,95020.0,95012.0,0.07569]
[1763386054462,0.01938028,95016.0,95012.0,0.07569]
[1763386054666,0.01938028,95015.0,95012.0,0.07569]
[1763386054873,0.01938028,95014.0,95012.0,0.07569]
[1763386055041,0.01938028,95013.0,95011.0,7.51837763]
[1763386055245,0.001,95019.0,95011.0,7.51837763]
[1763386055465,0.001,95019.0,95018.0,0.0352]
[1763386055714,0.02037224,95019.0,95018.0,0.0352]
[1763386056008,0.01937224,95019.0,95018.0,0.0352]
[1763386056415,0.01937224,95019.0,95018.0,0.0342]
[1763386056775,0.04568276,95019.0,95018.0,0.0342]
[1763386057383,0.01937224,95019.0,95018.0,0.08366]
[1763386058211,0.02037224,95019.0,95018.0,0.08366]
[1763386058450,0.01937224,95019.0,95018.0,0.08366]
[1763386058899,0.02037224,95019.0,95018.0,0.08366]
[1763386060030,0.001,95019.0,95018.0,0.08366]
[1763386060957,0.00044165,95031.0,95018.0,0.08366]
[1763386061132,0.00044165,95031.0,95030.0,0.03308]
[1763386061338,0.00044165,95031.0,95030.0,0.03443132]
[1763386061546,0.00044165,95031.0,95030.0,0.08389132]
[1763386062098,0.00044165,95031.0,95030.0,0.02889132]
[1763386063035,2.0,95066.0,95030.0,0.02889132]
[1763386063263,2.0,95064.0,95030.0,0.02889132]
[1763386063466,0.04566047,95063.0,95030.0,0.02889132]
[1763386063606,0.03426387,95062.0,95030.0,0.02889132]
[1763386063814,0.01936213,95061.0,95030.0,0.02889132]
[1763386064009,0.01936213,95060.0,95030.0,0.02889132]
[1763386064214,0.04566158,95059.0,95030.0,0.02889132]
[1763386064411,0.01936213,95058.0,95030.0,0.02889132]
[1763386064688,0.01936213,95057.0,95030.0,0.02889132]
[1763386064900,0.01936213,95056.0,95030.0,0.02889132]
[1763386065086,0.01936213,95055.0,95030.0,0.02889132]
[1763386065302,0.01936213,95054.0,95030.0,0.02889132]
[1763386065509,0.01935671,95053.0,95030.0,0.02889132]
[1763386065718,0.01935671,95052.0,95030.0,0.02889132]
[1763386065837,0.001,95058.0,95030.0,0.02889132]
[1763386065838,0.01935671,95051.0,95030.0,0.02889132]
[1763386066039,0.01935671,95050.0,95030.0,0.02889132]
[1763386066243,0.01935671,95049.0,95030.0,0.02889132]
[1763386066446,0.01935671,95048.0,95030.0,0.02889132]
[1763386066654,0.01935671,95047.0,95030.0,0.02889132]
[1763386066852,0.01935671,95046.0,95030.0,0.02889132]
[1763386067060,0.01935671,95045.0,95030.0,0.02889132]
[1763386067280,0.01935671,95044.0,95030.0,0.02889132]
[1763386067489,0.01935671,95043.0,95030.0,0.02889132]
[1763386067692,0.01935671,95042.0,95030.0,0.02889132]
[1763386067894,0.01935671,95041.0,95030.0,0.02889132]
[1763386068091,0.01935671,95040.0,95030.0,0.02889132]
[1763386068290,0.01935671,95039.0,95030.0,0.02889132]
[1763386068523,0.01935671,95038.0,95030.0,0.02889132]
[1763386068727,0.01935671,95037.0,95030.0,0.02889132]
[1763386068924,2.0,95068.0,95031.0,0.05295826]
[1763386069205,0.02629724,95067.0,95032.0,0.00818496]
[1763386069402,0.02629641,95070.0,95030.0,0.60034655]
[1763386069529,2.0,95069.0,95030.0,0.60034655]
[1763386069741,0.02629696,95068.0,95030.0,0.60034655]
[1763386070098,2.0,95069.0,95030.0,0.60047932]
[1763386070310,0.02629696,95068.0,95031.0,0.06004793]
[1763386070517,0.02530574,95069.0,95030.0,0.00013277]
[1763386070718,0.01684049,95068.0,95030.0,0.00013277]
[1763386070989,0.02330399,95069.0,95030.0,0.00013277]
[1763386071387,2.0,95073.0,95030.0,0.00013277]
[1763386071627,2.0,95071.0,95036.0,0.10416178]
[1763386071793,0.02629641,95070.0,95037.0,0.07046411]
[1763386072192,2.0,95073.0,95037.0,0.07046411]
[1763386072425,0.02629585,95072.0,95037.0,0.07046411]
[1763386072634,2.0,95073.0,95036.0,0.10416178]
[1763386072807,0.02629585,95072.0,95036.0,0.10416178]
[1763386073155,2.0,95073.0,95036.0,0.10416178]
[1763386073358,0.02629585,95072.0,95036.0,0.10416178]
[1763386073632,0.0262953,95074.0,95030.0,0.60047932]
[1763386073845,0.0262953,95074.0,95036.0,0.10416178]
[1763386074051,0.01652617,95064.0,95036.0,0.10416178]
[1763386074263,0.0262953,95074.0,95036.0,0.10416178]
[1763386074481,0.02629558,95073.0,95036.0,0.10416178]
[1763386074680,0.001,95072.0,95036.0,0.10416178]
[1763386074888,0.0262942,95078.0,95037.0,0.0774689]
[1763386075130,2.0,95077.0,95038.0,0.04341874]
[1763386075300,2.0,95075.0,95038.0,0.04341874]
[1763386075506,0.0262953,95074.0,95038.0,0.04341874]
[1763386075706,2.0,95078.0,95039.0,0.02250494]
[1763386076007,0.001,95072.0,95040.0,0.64376529]
[1763386076379,0.002,95079.0,95040.0,0.60034655]
[1763386076595,0.002,95079.0,95039.0,0.02250494]
[1763386076781,0.001,95075.0,95039.0,0.02250494]
[1763386076965,0.001,95075.0,95040.0,0.02041356]
[1763386077144,0.01652514,95067.0,95040.0,0.02041356]
[1763386077413,0.01652514,95067.0,95040.0,0.89963785]
[1763386078016,0.01652514,95067.0,95040.0,0.02041356]
[1763386078222,0.002,95079.0,95040.0,0.02041356]
[1763386078448,0.002,95079.0,95041.0,0.02020442]
[1763386080828,0.01938546,95078.0,95041.0,0.02020442]
[1763386081059,0.04379083,95077.0,95041.0,0.02020442]
[1763386081261,0.01938546,95076.0,95041.0,0.02020442]
[1763386081465,0.01938546,95075.0,95041.0,0.02020442]
[1763386081665,0.01938546,95074.0,95042.0,0.02354662]
[1763386081866,0.01938546,95073.0,95042.0,0.02354662]
[1763386082189,0.01938546,95072.0,95042.0,0.02354662]
[1763386082393,0.01938546,95071.0,95042.0,0.02354662]
[1763386082582,0.01938546,95070.0,95042.0,0.02354662]
[1763386082878,0.01652449,95076.0,95037.0,0.1111]
[1763386082879,0.01938546,95069.0,95043.0,0.02388084]
[1763386083082,0.01938546,95068.0,95043.0,0.02388084]
[1763386083282,0.01938546,95067.0,95037.0,0.1111]
[1763386083524,0.01938546,95066.0,95037.0,0.0821]
[1763386083714,0.01938546,95065.0,95037.0,0.0821]
[1763386083921,0.01938546,95064.0,95037.0,0.0821]
[1763386084140,0.02629503,95075.0,95030.0,0.00013277]
[1763386084141,0.01938546,95063.0,95030.0,0.00013277]
[1763386084420,0.01938546,95062.0,95030.0,0.00013277]
[1763386084622,0.01938546,95061.0,95030.0,0.00013277]
[1763386084844,0.01938546,95060.0,95030.0,0.00013277]
[1763386085035,0.01938546,95059.0,95030.0,0.00013277]
[1763386085193,0.01938546,95058.0,95030.0,0.00013277]
[1763386085537,0.01938546,95057.0,95036.0,0.10416178]
[1763386085736,0.01938546,95056.0,95036.0,0.10416178]
[1763386085884,0.01938546,95055.0,95036.0,0.10416178]
[1763386086089,0.01938546,95054.0,95036.0,0.10416178]
[1763386086287,0.01938546,95053.0,95036.0,0.10416178]
[1763386086531,0.01938546,95052.0,95037.0,0.01254178]
[1763386086732,0.01938546,95051.0,95037.0,0.01254178]
[1763386086945,0.01938546,95050.0,95036.0,0.10416178]
[1763386087256,0.01938546,95049.0,95036.0,0.10416178]
[1763386087485,0.01938546,95048.0,95031.0,0.01112328]
[1763386087689,0.01938546,95047.0,95031.0,0.01112328]
[1763386087987,0.01938546,95046.0,95030.0,0.00013277]
[1763386088113,0.01938546,95045.0,95030.0,0.00013277]
[1763386088317,0.01938546,95044.0,95030.0,0.00013277]
[1763386088511,0.01938546,95043.0,95030.0,0.00013277]
[1763386088715,0.01938546,95042.0,95036.0,0.001]
[1763386088935,0.01938546,95041.0,95030.0,0.00013277]
[1763386089135,0.01938546,95040.0,95030.0,0.00113277]
[1763386089341,0.01938546,95039.0,95030.0,0.00113277]
[1763386089542,0.01938546,95038.0,95030.0,0.00113277]
[1763386089841,0.01938546,95037.0,95030.0,0.00113277]
[1763386090049,0.01938546,95036.0,95030.0,0.00113277]
[1763386090302,0.01938546,95035.0,95030.0,0.00113277]
[1763386090478,0.0263,95057.0,95030.0,0.00113277]
[1763386090479,0.01938546,95034.0,95030.0,0.00113277]
[1763386090689,0.01938546,95033.0,95014.0,0.09348142]
[1763386090895,0.01938546,95032.0,95019.0,0.10416178]
[1763386091143,0.01938546,95031.0,95019.0,0.10416178]
[1763386091317,0.01938546,95030.0,95019.0,0.10416178]
[1763386091528,0.01938546,95029.0,95019.0,0.10416178]
[1763386091832,0.01938546,95028.0,95019.0,0.10416178]
[1763386092034,0.01938546,95027.0,95020.0,0.02082728]
[1763386092234,0.01938546,95026.0,95020.0,0.02082728]
[1763386092437,0.01938546,95025.0,95019.0,0.10416178]
[1763386092622,0.01938546,95024.0,95019.0,0.10416178]
[1763386092818,0.01938546,95023.0,95019.0,0.10416178]
[1763386093025,0.01938546,95022.0,95019.0,0.10416178]
[1763386093220,0.01938546,95021.0,95019.0,0.10416178]
[1763386093428,0.01938546,95020.0,95019.0,0.10416178]
[1763386094080,0.01938546,95020.0,95019.0,0.10516178]
[1763386094296,0.01938546,95020.0,95019.0,0.10416178]
[1763386094490,0.01938546,95020.0,95016.0,0.10416178]
[1763386094713,0.05423396,95052.0,95019.0,0.001]
[1763386094907,0.01945811,95051.0,95019.0,0.001]
[1763386095130,0.0445216,95050.0,95019.0,0.001]
[1763386095342,0.01945811,95049.0,95017.0,0.10366938]
[1763386095627,0.01945811,95048.0,95017.0,0.10366938]
[1763386095830,0.01945811,95047.0,95018.0,0.10366938]
[1763386095982,0.02793257,95053.0,95018.0,0.10366938]
[1763386095983,0.01945811,95046.0,95018.0,0.10366938]
[1763386096240,0.01945811,95045.0,95018.0,0.10366938]
[1763386096419,0.01945811,95044.0,95019.0,0.04064236]
[1763386096623,0.01945811,95043.0,95016.0,0.10516178]
[1763386096831,0.01945811,95042.0,95016.0,0.10516178]
[1763386097032,0.01945811,95041.0,95016.0,0.10416178]
[1763386097232,0.01945811,95040.0,95016.0,0.10416178]
[1763386097431,0.01945811,95039.0,95016.0,0.10416178]
[1763386097690,0.01945811,95038.0,95016.0,0.05216178]
[1763386097845,0.01945811,95037.0,95016.0,0.05216178]
[1763386098064,0.01945811,95036.0,95016.0,0.05216178]
[1763386098259,0.07179275,95061.0,95016.0,0.05216178]
[1763386098553,0.03945601,95060.0,95017.0,0.04206]
[1763386098756,0.01998613,95060.0,95018.0,0.10366938]
[1763386098958,0.01998613,95060.0,95018.0,0.12469938]
[1763386099165,0.01998613,95060.0,95019.0,0.02103]
[1763386099365,2.0,95063.0,95059.0,0.02103]
[1763386099608,0.01998613,95062.0,95059.0,0.02103]
[1763386099808,2.0,95063.0,95059.0,0.02103]
[1763386100046,0.04488,95060.0,95043.0,0.02103]
[1763386100233,0.04488,95048.0,95036.0,0.02103]
[1763386100434,0.04488,95048.0,95026.0,0.02103]
[1763386100435,0.03589,95036.0,95019.0,0.02103]
[1763386100637,0.09575531,95035.0,95019.0,0.02147165]
[1763386100808,0.03589,95020.0,95019.0,0.00044165]
[1763386101246,2.15434,95020.0,95019.0,0.00044165]
[1763386101538,2.23254967,95020.0,95019.0,0.00044165]
[1763386103002,2.20285897,95020.0,95019.0,0.00044165]
[1763386104052,2.20385897,95020.0,95019.0,0.00044165]
[1763386104471,2.21204393,95020.0,95019.0,0.00044165]
[1763386104731,2.20385897,95020.0,95019.0,0.00044165]
[1763386104934,2.20385897,95020.0,95011.0,7.47006763]
[1763386104935,0.04341874,95017.0,95011.0,7.47006763]
[1763386105169,2.04549,95012.0,95011.0,7.47006763]
[1763386105614,2.11447,95012.0,95011.0,7.47006763]
[1763386107153,2.15788874,95012.0,95011.0,7.47006763]
[1763386107741,2.15888874,95012.0,95011.0,7.46967565]
[1763386107940,2.15907998,95012.0,95011.0,7.46967565]
[1763386109775,2.15807998,95012.0,95011.0,7.46967565]
[1763386109949,2.1587845,95012.0,95011.0,7.46967565]
[1763386110156,2.1957894,95012.0,95011.0,7.46967565]
[1763386110510,2.20769589,95012.0,95011.0,7.46967565]
[1763386111488,2.20048593,95012.0,95011.0,7.46967565]
[1763386111964,2.20048593,95012.0,95011.0,7.39167565]
[1763386114310,2.19548593,95012.0,95011.0,7.39167565]
[1763386115445,0.08308719,95012.0,95011.0,7.39167565]
[1763386115645,0.06081651,95012.0,95011.0,7.39167565]
[1763386116052,0.12979651,95012.0,95011.0,7.39167565]
[1763386116251,0.06081651,95012.0,95011.0,7.39167565]
[1763386116464,0.06081651,95012.0,95011.0,7.44477565]
[1763386116465,0.01639332,95012.0,95011.0,7.44477565]
[1763386116662,0.02271616,95017.0,95011.0,7.44477565]
[1763386116663,0.00044174,95017.0,95011.0,7.41822565]
[1763386116861,0.001,95012.0,95011.0,7.41822565]
[1763386117059,0.02042787,95017.0,95011.0,7.41822565]
[1763386117247,0.00044174,95017.0,95016.0,0.02655]
[1763386117926,0.00044174,95017.0,95011.0,7.39167565]
[1763386119083,0.00044174,95017.0,95011.0,7.31367565]
[1763386119793,0.00144174,95017.0,95011.0,7.31367565]
[1763386120160,0.00044174,95017.0,95011.0,7.31367565]
[1763386120330,0.00144174,95017.0,95011.0,7.31367565]
[1763386121450,0.00144174,95017.0,95016.0,0.02655]
[1763386122357,0.00144174,95017.0,95011.0,7.31367565]
[1763386122561,0.00044174,95017.0,95011.0,7.31367565]
[1763386122872,0.00144174,95017.0,95011.0,7.31367565]
[1763386123653,0.00044174,95017.0,95011.0,7.31367565]
[1763386124058,0.00144174,95017.0,95011.0,7.31367565]
[1763386124785,0.04549,95012.0,95011.0,7.31367565]
[1763386124988,2.11447,95012.0,95011.0,7.31367565]
[1763386125284,2.13680785,95012.0,95011.0,7.31367565]
[1763386126096,2.13780785,95012.0,95011.0,7.23567565]
[1763386128500,2.08825802,95012.0,95011.0,7.23567565]
[1763386129163,0.04276802,95012.0,95011.0,7.23567565]
[1763386129294,0.02043017,95012.0,95011.0,7.28877565]
[1763386129494,0.02043017,95012.0,95011.0,7.26222565]
[1763386130127,0.02043017,95012.0,95011.0,7.28877565]
[1763386130501,0.01943017,95012.0,95011.0,7.28877565]
[1763386130711,0.01946872,95012.0,95011.0,7.28877565]
[1763386131724,0.01946872,95012.0,95011.0,7.26222565]
[1763386131915,0.0169742,95017.0,95011.0,7.26222565]
[1763386131916,0.4152024,95020.0,95011.0,7.26222565]
[1763386132111,0.4152024,95020.0,95011.0,7.26235803]
[1763386132112,0.01946741,95019.0,95011.0,7.26235803]
[1763386132313,0.4152024,95020.0,95011.0,7.26235803]
[1763386132650,0.4152024,95020.0,95012.0,0.02104]
[1763386133436,0.4152024,95020.0,95011.0,7.23484803]
[1763386134388,0.04488,95012.0,95011.0,7.23484803]
[1763386134997,0.10962,95012.0,95011.0,7.23484803]
[1763386135206,0.04488,95012.0,95011.0,7.23484803]
[1763386135568,2.0,95019.0,95011.0,7.23484803]
[1763386135966,0.4999994,95020.0,95011.0,7.23484803]
[1763386137952,0.04488,95012.0,95011.0,7.23484803]
[1763386138466,0.10962,95012.0,95011.0,7.23484803]
[1763386139026,2.36353846,95012.0,95011.0,7.23484803]
[1763386139220,2.40082226,95012.0,95011.0,7.23484803]
[1763386139423,2.36353846,95012.0,95011.0,7.23484803]
[1763386140033,2.15303874,95012.0,95011.0,7.23484803]
[1763386140494,2.36353846,95012.0,95011.0,7.23484803]
[1763386140728,2.36476748,95012.0,95011.0,7.23484803]
[1763386141156,2.39643976,95012.0,95011.0,7.15584803]
[1763386142061,2.18494004,95012.0,95011.0,7.09881331]
[1763386142206,2.39621074,95012.0,95011.0,7.09881331]
[1763386142614,2.39521074,95012.0,95011.0,7.09881331]
[1763386142864,2.39721074,95012.0,95011.0,7.09881331]
[1763386143414,2.3974561,95012.0,95011.0,7.09881331]
[1763386143618,2.3974561,95012.0,95011.0,7.02739331]
[1763386143759,2.42197827,95012.0,95011.0,6.92720801]
[1763386143965,2.49902963,95012.0,95011.0,6.92720801]
[1763386144568,2.57366173,95012.0,95011.0,6.92720801]
[1763386144772,2.57366034,95012.0,95011.0,6.92720801]
[1763386145009,2.57166034,95012.0,95011.0,6.88085163]
[1763386145223,2.49702963,95012.0,95011.0,6.88085163]
[1763386145436,2.49902963,95012.0,95011.0,0.00013238]
[1763386145653,2.49902963,95012.0,95000.0,19.31908789]
[1763386145654,0.03656185,95005.0,95000.0,19.31908789]
[1763386145860,0.32378283,95001.0,95000.0,6.61339436]
[1763386146062,0.39460198,95001.0,95000.0,4.06155193]
[1763386146232,0.46909084,95001.0,95000.0,0.37168361]
[1763386146433,0.21971258,94889.0,94888.0,8.80992641]
[1763386146634,0.46745331,94889.0,94888.0,7.52689841]
[1763386146839,0.55714714,94889.0,94888.0,4.91602251]
[1763386147048,0.5422386,94889.0,94888.0,4.76958427]
[1763386147250,0.5422386,94889.0,94888.0,2.59126779]
[1763386147451,0.5422386,94889.0,94888.0,1.25097706]
[1763386147658,0.67088346,94889.0,94888.0,0.70828911]
[1763386147922,0.67088346,94889.0,94888.0,0.53308586]
[1763386148104,0.68161531,94793.0,94768.0,0.03402]
[1763386148300,0.68161531,94791.0,94778.0,0.06654]
[1763386148504,0.02240284,94790.0,94778.0,0.06654]
[1763386148710,0.68161531,94804.0,94790.0,0.04315]
[1763386148912,0.68161531,94802.0,94791.0,0.06654]
[1763386149116,0.00999999,94820.0,94777.0,9.721]
[1763386149117,0.68161531,94790.0,94777.0,9.721]
[1763386149326,0.67366518,94789.0,94777.0,9.721]
[1763386150288,0.00012032,94790.0,94777.0,9.721]
[1763386150289,0.67366518,94785.0,94777.0,9.721]
[1763386150494,0.67366518,94789.0,94777.0,9.721]
[1763386150735,0.66404139,94789.0,94777.0,9.721]
[1763386150937,0.65693692,94789.0,94788.0,0.04315]
[1763386151142,0.65585091,94789.0,94788.0,0.04315]
[1763386151312,0.65585091,94789.0,94788.0,0.10969]
[1763386151516,0.65585091,94789.0,94777.0,9.721]
[1763386152716,0.65585091,94779.0,94778.0,0.06654]
[1763386152878,0.65585091,94779.0,94777.0,9.721]
[1763386153163,0.65585091,94779.0,94778.0,0.11591288]
[1763386153560,0.65585091,94779.0,94778.0,0.04937288]
[1763386153983,0.65585091,94779.0,94778.0,0.11591288]
[1763386154954,0.65585091,94779.0,94778.0,0.00622288]
[1763386155153,0.65585091,94779.0,94778.0,0.11591288]
[1763386155365,0.65585091,94779.0,94778.0,0.08991288]
[1763386155596,0.0644659,94778.0,94777.0,9.721]
[1763386155938,0.72031681,94778.0,94777.0,9.721]
[1763386156146,0.72031681,94778.0,94777.0,9.76415]
[1763386156783,0.72031681,94778.0,94777.0,9.721]
[1763386160386,0.88235289,94778.0,94777.0,9.721]
[1763386160636,0.34202141,94778.0,94777.0,9.06514909]
[1763386160876,0.43752141,94778.0,94777.0,9.06514909]
[1763386161972,0.29810141,94778.0,94777.0,9.06514909]
[1763386162171,0.08708198,94778.0,94777.0,9.06514909]
[1763386162406,0.27648533,94778.0,94777.0,9.06514909]
[1763386162606,0.29810141,94778.0,94777.0,8.98614909]
[1763386162738,0.44165141,94778.0,94777.0,8.98614909]
[1763386163424,0.46868281,94778.0,94777.0,8.98614909]
[1763386163641,0.29810141,94778.0,94777.0,8.98614909]
[1763386163963,0.08708198,94778.0,94777.0,8.98614909]
[1763386164175,0.0654659,94778.0,94777.0,8.98614909]
[1763386165472,0.27648533,94778.0,94777.0,8.98614909]
[1763386165686,0.29810141,94778.0,94777.0,8.98614909]
[1763386165891,0.08708198,94778.0,94777.0,8.98614909]
[1763386166093,0.0654659,94778.0,94777.0,8.98614909]
[1763386166508,0.08204052,94778.0,94777.0,8.98614909]
[1763386166864,0.0654659,94778.0,94777.0,8.98614909]
[1763386167480,0.12366167,94778.0,94777.0,8.98614909]
[1763386167689,0.10204559,94778.0,94777.0,8.98614909]
[1763386168030,0.12366167,94778.0,94777.0,8.98614909]
[1763386168251,0.08708198,94778.0,94777.0,8.98614909]
[1763386168621,0.08708198,94778.0,94777.0,9.14333909]
[1763386168792,0.0654659,94778.0,94777.0,9.14333909]
[1763386169197,0.36287,94780.0,94777.0,8.98614909]
[1763386169399,0.36287,94780.0,94779.0,0.10416178]
[1763386169595,0.5,94780.0,94778.0,0.10416178]
[1763386169759,0.5,94780.0,94778.0,0.14800137]
[1763386169958,0.5,94780.0,94778.0,0.16487278]
[1763386171208,0.5,94780.0,94778.0,0.12103319]
[1763386171879,0.5,94780.0,94778.0,0.12203319]
[1763386172080,0.5,94780.0,94778.0,0.12103319]
[1763386172458,0.5,94780.0,94779.0,0.04341874]
[1763386173362,0.52756879,94780.0,94779.0,0.04341874]
[1763386173564,0.5,94780.0,94779.0,0.04341874]
[1763386174961,0.5,94780.0,94779.0,0.04541874]
[1763386175166,0.5,94780.0,94778.0,0.10931769]
[1763386175595,0.5,94780.0,94779.0,0.002]
[1763386176150,0.5,94780.0,94778.0,0.10931769]
[1763386176283,0.5,94780.0,94779.0,0.10366938]
[1763386176706,0.5,94780.0,94779.0,0.06066938]
[1763386177228,0.5,94780.0,94779.0,0.2082499]
[1763386177467,0.33038795,94780.0,94779.0,0.2082499]
[1763386177686,0.49999995,94780.0,94779.0,0.2240804]
[1763386178174,0.49999995,94780.0,94779.0,0.16641102]
[1763386178435,0.49999995,94780.0,94779.0,0.10716178]
[1763386178668,0.53711961,94780.0,94779.0,0.10716178]
[1763386178892,0.49999995,94780.0,94779.0,0.10716178]
[1763386179136,0.49999995,94780.0,94779.0,0.12510319]
[1763386179362,0.49999995,94780.0,94779.0,0.22877257]
[1763386179579,0.49999995,94780.0,94779.0,0.21083116]
[1763386180620,0.49999995,94780.0,94779.0,0.20783116]
[1763386180855,0.49999995,94780.0,94779.0,0.15277857]
[1763386181074,0.49999995,94780.0,94779.0,0.13789224]
[1763386181265,0.52223687,94780.0,94779.0,0.13789224]
[1763386181445,0.52223687,94780.0,94779.0,0.13589224]
[1763386181870,0.02223692,94780.0,94779.0,0.10616178]
[1763386182145,0.02223692,94780.0,94779.0,0.22671749]
[1763386182710,0.02223692,94780.0,94779.0,0.12304811]
[1763386183992,0.02223692,94780.0,94779.0,0.08404811]
[1763386184440,0.02223692,94780.0,94779.0,0.19514811]
[1763386185842,0.02223692,94780.0,94779.0,0.2229353]
[1763386186202,0.02202591,94780.0,94779.0,0.2229353]
[1763386186408,0.02202591,94780.0,94779.0,0.02978719]
[1763386186617,0.02202591,94780.0,94779.0,0.02089905]
[1763386186825,0.02202591,94780.0,94779.0,0.01903905]
[1763386187035,0.00012032,94790.0,94780.0,0.01999998]
[1763386187247,0.00012032,94790.0,94789.0,7e-05]
[1763386187629,0.00012032,94790.0,94789.0,0.00014]
[1763386188608,0.00012032,94790.0,94789.0,0.02009304]
[1763386188832,0.00012032,94790.0,94781.0,0.00209305]
[1763386189010,0.00012032,94790.0,94781.0,0.08367881]
[1763386190261,0.00012032,94790.0,94782.0,0.1111]
[1763386190439,0.00012032,94790.0,94789.0,0.001]
[1763386190653,0.00012032,94790.0,94783.0,0.00209299]
[1763386191080,0.00012032,94790.0,94782.0,0.08919299]
[1763386191285,0.00012032,94790.0,94783.0,0.10366938]
[1763386191479,0.00012032,94790.0,94789.0,0.001]
[1763386191867,0.00012032,94790.0,94783.0,0.10366938]
[1763386192490,0.00012032,94790.0,94782.0,0.001]
[1763386192728,0.00012032,94790.0,94783.0,0.00257499]
[1763386193565,0.00012032,94790.0,94780.0,0.61018035]
[1763386193566,0.00012032,94790.0,94781.0,0.00257499]
[1763386193772,0.00012032,94790.0,94789.0,0.001]
[1763386193973,0.00012032,94790.0,94781.0,0.00257499]
[1763386194400,0.03438977,94790.0,94783.0,0.001]
[1763386194574,0.02777514,94785.0,94780.0,0.60018036]
[1763386194780,0.02777514,94784.0,94781.0,0.0036301]
[1763386195008,0.02777514,94787.0,94779.0,0.0036301]
[1763386195351,0.02777514,94785.0,94780.0,0.09394428]
[1763386195474,0.02777514,94784.0,94781.0,0.0036301]
[1763386196276,0.0370476,94788.0,94781.0,0.0247501]
[1763386196530,0.02788498,94782.0,94781.0,0.0036301]
[1763386196709,0.0370476,94788.0,94781.0,0.0036301]
[1763386197038,0.02788555,94783.0,94781.0,0.0036301]
[1763386197262,0.0370476,94786.0,94781.0,0.0046301]
[1763386197475,0.0370476,94786.0,94781.0,0.0036301]
[1763386197674,0.0370476,94786.0,94779.0,0.0036301]
[1763386197882,0.0370476,94786.0,94781.0,0.001]
[1763386198180,0.0370476,94786.0,94772.0,0.88384395]
[1763386198181,0.0370476,94782.0,94770.0,0.88406735]
[1763386198379,0.05569674,94783.0,94781.0,0.001]
[1763386198639,0.02237698,94782.0,94781.0,0.001]
[1763386198983,0.02237698,94782.0,94778.0,0.06216178]
[1763386199187,0.02237698,94781.0,94779.0,0.09806825]
[1763386199391,0.02237698,94780.0,94779.0,0.09806825]
[1763386200010,0.02237698,94780.0,94778.0,0.06216178]
[1763386200174,0.02237698,94779.0,94778.0,0.06216178]
[1763386200386,0.02237698,94779.0,94770.0,0.88406735]
[1763386200624,0.041809,94778.0,94770.0,0.88406735]
[1763386200833,0.041809,94778.0,94770.0,0.0002234]
[1763386201051,0.041809,94778.0,94777.0,9.86999304]
[1763386201052,0.03730841,94778.0,94777.0,9.86999304]
[1763386201271,0.02798578,94783.0,94778.0,0.001]
[1763386201489,0.03730841,94790.0,94778.0,0.001]
[1763386201490,0.02798578,94794.0,94782.0,0.10416178]
[1763386201699,0.02798578,94795.0,94790.0,0.01999998]
[1763386201912,0.02798578,94795.0,94790.0,0.00999999]
[1763386202131,0.02798578,94800.0,94790.0,0.00999999]
[1763386202372,0.02798578,94800.0,94792.0,0.88384395]
[1763386202562,0.02798578,94800.0,94792.0,0.9560105]
[1763386202774,0.02798578,94800.0,94797.0,0.10416178]
[1763386202982,0.02798578,94801.0,94792.0,0.9560105]
[1763386203446,0.02798578,94802.0,94793.0,0.00337003]
[1763386203639,0.02798578,94797.0,94790.0,0.88384395]
[1763386203852,0.02798578,94798.0,94787.0,0.88384395]
[1763386204055,0.02798578,94797.0,94787.0,0.88384395]
[1763386204271,0.02798578,94802.0,94787.0,0.88384395]
[1763386204480,0.02798578,94800.0,94780.0,0.89384394]
[1763386204725,0.02798578,94800.0,94781.0,0.0440925]
[1763386204929,0.02798578,94801.0,94781.0,0.0440925]
[1763386205346,0.02798578,94806.0,94781.0,0.0440925]
[1763386205991,0.02798578,94806.0,94790.0,0.88384395]
[1763386206246,0.02633916,94837.0,94790.0,0.88384395]
[1763386206247,0.02798578,94807.0,94790.0,0.82084395]
[1763386206466,0.02798578,94807.0,94791.0,0.0820844]
[1763386206690,0.05597771,94807.0,94790.0,0.82084395]
[1763386206923,0.02799193,94807.0,94790.0,0.82084395]
[1763386207384,0.02799193,94806.0,94790.0,0.82084395]
[1763386208091,0.05596262,94821.0,94790.0,0.82084395]
[1763386208092,0.02799193,94814.0,94793.0,0.10416178]
[1763386208314,0.02799193,94826.0,94810.0,0.00999999]
[1763386208534,0.02799193,94830.0,94811.0,0.88384395]
[1763386208756,0.02799193,94834.0,94820.0,0.88384395]
[1763386208978,0.04755,94877.0,94820.0,0.88384395]